bitfinex/quotes_BTCUSD_20251209
["timestamp","ask_amount","ask_price","bid_price","bid_amount"]
[1765314828688,0.04643617,93143.0,93140.0,0.21472994]
[1765314828883,0.01174,93143.0,93141.0,0.2147282]
[1765314829433,0.01274,93143.0,93142.0,0.2147259]
[1765314829638,0.01274,93143.0,93141.0,0.2147282]
[1765314830043,0.01274,93143.0,93141.0,0.2157282]
[1765314830239,0.01274,93143.0,93141.0,0.2147282]
[1765314830412,0.01274,93143.0,93142.0,0.06945933]
[1765314830628,0.22646359,93143.0,93142.0,0.07045933]
[1765314830831,0.22646359,93143.0,93142.0,0.06945933]
[1765314831856,0.01174,93143.0,93142.0,0.28418523]
[1765314832161,0.01174,93143.0,93142.0,0.06945933]
[1765314832369,0.22646359,93143.0,93142.0,0.06945933]
[1765314832673,0.22646359,93143.0,93142.0,0.07045933]
[1765314833208,0.22646359,93143.0,93142.0,0.001]
[1765314833373,0.01174,93143.0,93142.0,0.2157259]
[1765314833574,0.26460359,93143.0,93142.0,0.001]
[1765314836201,1.26460359,93143.0,93142.0,0.001]
[1765314837813,1.07330359,93143.0,93142.0,0.001]
[1765314838299,1.26460359,93143.0,93142.0,0.001]
[1765314840244,0.67170359,93143.0,93142.0,0.001]
[1765314840950,0.48670359,93143.0,93142.0,0.001]
[1765314841282,0.90560359,93143.0,93142.0,0.001]
[1765314842277,1.26460359,93143.0,93142.0,0.001]
[1765314842830,1.26460359,93143.0,93127.0,0.01073802]
[1765314842831,0.01074113,93100.0,93097.0,0.07672718]
[1765314843076,0.01074113,93100.0,93080.0,0.0004]
[1765314843077,0.56808961,93081.0,93080.0,0.0004]
[1765314843425,1.60875961,93081.0,93080.0,0.0004]
[1765314843619,1.66473945,93081.0,93080.0,0.0004]
[1765314843897,1.69700408,93081.0,93080.0,0.0004]
[1765314844131,1.69700408,93081.0,93070.0,0.0004]
[1765314844132,1.27741269,93071.0,93070.0,0.0004]
[1765314844316,1.58329269,93071.0,93070.0,0.0004]
[1765314844516,0.21493589,93051.0,93040.0,0.0004]
[1765314844672,1.54919589,93051.0,93040.0,0.0004]
[1765314844872,1.57215589,93051.0,93040.0,0.0004]
[1765314846297,1.57215589,93051.0,93050.0,0.0014]
[1765314847025,1.57215589,93051.0,93050.0,0.0004]
[1765314847174,1.57215589,93051.0,93050.0,0.0014]
[1765314848229,1.57215589,93051.0,93050.0,0.0024]
[1765314848595,0.53219589,93051.0,93050.0,0.0024]
[1765314848794,0.017,93051.0,93050.0,0.00836]
[1765314848991,0.017,93051.0,93050.0,0.01015601]
[1765314849360,0.017,93051.0,93050.0,0.05738626]
[1765314849523,0.017,93051.0,93050.0,0.00319601]
[1765314849900,0.017,93051.0,93050.0,0.00419601]
[1765314852070,0.017,93051.0,93050.0,0.00719601]
[1765314852283,0.0268984,93051.0,93050.0,0.00719601]
[1765314853656,0.0268984,93051.0,93050.0,0.04560601]
[1765314853843,0.017,93051.0,93050.0,0.07381135]
[1765314854190,0.017,93051.0,93050.0,0.05116135]
[1765314854477,0.02690146,93051.0,93050.0,0.05116135]
[1765314854687,0.017,93051.0,93050.0,0.05116135]
[1765314855521,0.017,93051.0,93050.0,0.05277422]
[1765314855835,0.02690146,93051.0,93050.0,0.05277422]
[1765314856276,0.02690146,93051.0,93050.0,0.03701422]
[1765314856451,0.02690146,93051.0,93050.0,0.00880888]
[1765314859787,0.04244146,93051.0,93050.0,0.00880888]
[1765314859987,0.28149735,93051.0,93050.0,0.00719601]
[1765314862163,0.02690146,93051.0,93050.0,0.00719601]
[1765314862361,0.02690146,93051.0,93050.0,0.22374708]
[1765314862528,0.02690146,93051.0,93050.0,0.07073718]
[1765314862724,0.02690146,93051.0,93050.0,0.28567538]
[1765314863123,0.00990146,93051.0,93050.0,0.28567538]
[1765314863325,0.02690146,93051.0,93050.0,0.30150538]
[1765314864289,0.24183735,93051.0,93050.0,0.07073718]
[1765314864426,0.01074748,93045.0,93042.0,0.01074783]
[1765314864631,0.00990146,93044.0,93042.0,0.01074783]
[1765314864900,0.01178,93047.0,93046.0,0.21494744]
[1765314865041,0.02083034,93047.0,93046.0,0.28377169]
[1765314865240,0.03637034,93047.0,93046.0,0.06882425]
[1765314865614,0.002,93045.0,93044.0,0.22569822]
[1765314865788,0.01193541,93045.0,93044.0,0.22731109]
[1765314865934,0.00993541,93045.0,93044.0,0.24314109]
[1765314866334,0.0328456,93045.0,93044.0,0.24314109]
[1765314866556,0.0328456,93045.0,93044.0,0.26595109]
[1765314866751,0.0328456,93045.0,93044.0,0.3625479]
[1765314867478,0.0328456,93045.0,93044.0,0.3397379]
[1765314868080,0.0358456,93045.0,93044.0,0.3397379]
[1765314868315,0.0378456,93045.0,93044.0,0.3397379]
[1765314869219,0.0378456,93045.0,93044.0,0.3625479]
[1765314869563,0.0666122,93045.0,93044.0,0.3625479]
[1765314870006,0.0378456,93045.0,93044.0,0.3625479]
[1765314870618,0.0378456,93045.0,93044.0,0.3397379]
[1765314870816,0.0378456,93045.0,93042.0,0.00022817]
[1765314870817,0.21495437,93043.0,93042.0,0.00022817]
[1765314871019,0.26333997,93043.0,93042.0,0.00022817]
[1765314871364,0.01074841,93037.0,93034.0,0.01074875]
[1765314871560,0.01074841,93037.0,93033.0,0.01074887]
[1765314871561,0.03843589,93035.0,93033.0,0.01074887]
[1765314871766,0.0328456,93034.0,93032.0,0.22572839]
[1765314871983,0.0328456,93033.0,93032.0,0.22572839]
[1765314872427,0.0328456,93033.0,93031.0,0.01175]
[1765314872568,0.24782539,93032.0,93031.0,0.01175]
[1765314873182,0.24782539,93032.0,93030.0,0.0004]
[1765314873183,0.2149821,93031.0,93030.0,0.0004]
[1765314873386,0.0328456,93031.0,93030.0,0.21538441]
[1765314873724,0.0328456,93031.0,93030.0,0.24103005]
[1765314873725,0.03329392,93031.0,93030.0,0.24103005]
[1765314874200,0.03329392,93031.0,93030.0,0.02604564]
[1765314874440,0.03329392,93031.0,93030.0,0.24103005]
[1765314874824,0.03529392,93031.0,93030.0,0.24103005]
[1765314875016,0.03629392,93031.0,93030.0,0.24103005]
[1765314875219,0.03629392,93031.0,93030.0,0.02604564]
[1765314876207,0.03629392,93031.0,93030.0,0.24103005]
[1765314877159,0.03629392,93031.0,93030.0,0.02604564]
[1765314877360,0.25127602,93031.0,93030.0,0.02604564]
[1765314877724,0.25127602,93031.0,93030.0,0.0007423]
[1765314879694,0.03629392,93031.0,93030.0,0.0007423]
[1765314879881,0.03629392,93031.0,93030.0,0.21572671]
[1765314883398,0.06525104,93031.0,93030.0,0.21572671]
[1765314884314,0.03629392,93031.0,93030.0,0.21572671]
[1765314884671,0.03629392,93031.0,93030.0,0.28966819]
[1765314886116,0.03629392,93031.0,93030.0,0.07468378]
[1765314886371,0.03629392,93031.0,93020.0,0.01124037]
[1765314886372,0.01074991,93024.0,93020.0,0.01124037]
[1765314886595,0.0498456,93023.0,93021.0,0.21500351]
[1765314886822,0.23200059,93023.0,93022.0,0.02762481]
[1765314887067,0.2652159,93023.0,93022.0,0.02762481]
[1765314887890,0.24205372,93023.0,93022.0,0.02762481]
[1765314888092,0.24205372,93023.0,93022.0,0.02862481]
[1765314888701,0.02705313,93023.0,93022.0,0.02862481]
[1765314888903,0.24205372,93023.0,93022.0,0.02862481]
[1765314889108,0.26520871,93023.0,93022.0,0.00122823]
[1765314889309,0.26520871,93023.0,93022.0,0.00222823]
[1765314889732,0.26520871,93023.0,93022.0,0.00177991]
[1765314889960,0.05020812,93023.0,93022.0,0.00177991]
[1765314890149,0.26520871,93023.0,93022.0,0.00177991]
[1765314890656,0.31545871,93023.0,93022.0,0.00177991]
[1765314892252,0.27753871,93023.0,93022.0,0.00177991]
[1765314892504,0.25438372,93023.0,93022.0,0.00177991]
[1765314893570,0.03938313,93023.0,93022.0,0.00177991]
[1765314893775,0.01005313,93023.0,93022.0,0.23354568]
[1765314894010,0.01005313,93023.0,93022.0,0.32957793]
[1765314895032,0.017,93024.0,93023.0,0.21500059]
[1765314895232,0.017,93024.0,93023.0,0.25554346]
[1765314896192,0.017,93024.0,93023.0,0.25754346]
[1765314896396,0.02687131,93036.0,93023.0,0.25754346]
[1765314896397,0.02687131,93036.0,93035.0,0.21497285]
[1765314896598,0.02704558,93036.0,93035.0,0.04578036]
[1765314896798,0.26888743,93036.0,93035.0,0.04578036]
[1765314896985,0.02704558,93036.0,93035.0,0.04578036]
[1765314897187,0.05391689,93036.0,93035.0,0.04578036]
[1765314897407,0.26888743,93036.0,93035.0,0.04578036]
[1765314897628,0.24201612,93036.0,93035.0,0.04578036]
[1765314898483,0.24301612,93036.0,93035.0,0.04578036]
[1765314898682,0.22573061,93032.0,93028.0,0.01074945]
[1765314898829,0.0107491,93031.0,93026.0,0.02025968]
[1765314899022,0.21498928,93028.0,93026.0,0.00951]
[1765314899946,0.21498928,93028.0,93026.0,0.01051]
[1765314900149,0.21498928,93028.0,93027.0,0.07243924]
[1765314900351,0.01074875,93034.0,93029.0,0.01074933]
[1765314900554,0.01005248,93039.0,93038.0,0.21496592]
[1765314900756,0.03968995,93056.0,93050.0,0.21493752]
[1765314900757,0.5175,93052.0,93050.0,0.21493752]
[1765314900960,0.02705248,93051.0,93050.0,0.02471794]
[1765314901407,0.01074714,93048.0,93046.0,0.21494674]
[1765314901580,0.27960445,93051.0,93046.0,0.21494674]
[1765314901581,0.01005248,93050.0,93047.0,0.21494492]
[1765314901788,0.017,93051.0,93047.0,0.01074725]
[1765314901991,0.01074737,93046.0,93044.0,0.21495145]
[1765314902221,0.01233,93047.0,93044.0,0.0107476]
[1765314902405,0.01074725,93047.0,93044.0,0.0107476]
[1765314902609,0.22569076,93048.0,93045.0,0.21494952]
[1765314902957,0.01074714,93048.0,93047.0,0.001]
[1765314903074,0.01074714,93048.0,93046.0,0.001]
[1765314903476,0.24268297,93051.0,93047.0,0.01074725]
[1765314903672,0.017,93051.0,93049.0,0.21494002]
[1765314904114,0.017,93051.0,93049.0,0.22445002]
[1765314904292,0.017,93051.0,93050.0,0.09951244]
[1765314904510,0.017,93059.0,93057.0,0.21492203]
[1765314904705,0.017,93059.0,93058.0,0.21491972]
[1765314905708,0.018,93059.0,93058.0,0.21491972]
[1765314905922,0.018,93059.0,93058.0,0.30669242]
[1765314906127,0.017,93059.0,93058.0,0.30869242]
[1765314906332,0.017,93059.0,93058.0,0.34762242]
[1765314906534,0.018,93059.0,93058.0,0.32584242]
[1765314907230,0.018,93059.0,93058.0,0.34962242]
[1765314907409,0.001,93059.0,93058.0,0.35123529]
[1765314908394,0.02774413,93074.0,93071.0,0.22563208]
[1765314908694,0.02774413,93074.0,93071.0,0.05728062]
[1765314908695,0.24262772,93074.0,93071.0,0.05728062]
[1765314908898,0.24262772,93074.0,93071.0,0.04653614]
[1765314909096,0.21488509,93073.0,93071.0,0.26142552]
[1765314909298,0.02774413,93074.0,93071.0,0.26142552]
[1765314909702,0.05460447,93074.0,93071.0,0.27217]
[1765314909912,0.04386034,93074.0,93072.0,0.21488732]
[1765314910072,0.017,93074.0,93071.0,0.27217]
[1765314910288,0.4061,93074.0,93073.0,0.21488509]
[1765314910487,0.01074436,93072.0,93069.0,0.00918]
[1765314910722,0.21489201,93070.0,93069.0,0.00918]
[1765314911143,0.22563303,93072.0,93069.0,0.23481903]
[1765314911346,0.22563303,93072.0,93070.0,0.07098922]
[1765314911556,0.2148897,93071.0,93070.0,0.07098922]
[1765314911715,0.01074436,93072.0,93070.0,0.07098922]
[1765314912144,0.2148897,93071.0,93070.0,0.07098922]
[1765314912789,0.2178897,93071.0,93070.0,0.07198922]
[1765314913002,0.003,93071.0,93070.0,0.07198922]
[1765314913765,0.29484091,93071.0,93070.0,0.001]
[1765314914068,0.2709797,93071.0,93070.0,0.001]
[1765314914710,1.62420269,93071.0,93070.0,0.001]
[1765314914919,1.63422636,93071.0,93070.0,0.001]
[1765314916121,1.62420269,93071.0,93070.0,0.001]
[1765314919158,1.6342255,93071.0,93070.0,0.001]
[1765314920488,1.65732177,93071.0,93070.0,0.001]
[1765314920680,1.65432177,93071.0,93070.0,0.001]
[1765314920885,1.65432177,93071.0,93035.0,0.22415138]
[1765314920886,0.21496377,93039.0,93036.0,0.21497013]
[1765314921090,0.01074806,93040.0,93037.0,0.06114559]
[1765314921296,0.01074794,93041.0,93037.0,0.06114559]
[1765314921297,0.22570808,93041.0,93037.0,0.01074841]
[1765314921510,0.22570808,93041.0,93037.0,0.22571663]
[1765314921744,0.01168,93058.0,93040.0,0.01624]
[1765314922073,0.6332,93065.0,93060.0,0.01074575]
[1765314922196,0.6322,93063.0,93062.0,0.21491048]
[1765314922816,0.017,93064.0,93062.0,0.21491048]
[1765314923065,0.6471,93063.0,93061.0,0.22565799]
[1765314923248,0.6471,93063.0,93061.0,0.01074563]
[1765314923658,0.6471,93063.0,93054.0,0.225675]
[1765314923659,0.01074598,93058.0,93054.0,0.225675]
[1765314923882,0.24177688,93061.0,93058.0,0.01074598]
[1765314924048,0.01074563,93061.0,93058.0,0.21491889]
[1765314924250,0.03760972,93061.0,93059.0,0.21491681]
[1765314924927,0.03760972,93061.0,93059.0,0.28369153]
[1765314925122,0.03860972,93061.0,93059.0,0.28369153]
[1765314925326,0.04060972,93061.0,93058.0,0.21491889]
[1765314925502,0.03960972,93061.0,93058.0,0.21491889]
[1765314925704,0.25452303,93061.0,93058.0,0.21491889]
[1765314925896,0.22965894,93061.0,93058.0,0.22566487]
[1765314926099,0.25652303,93061.0,93058.0,0.22566487]
[1765314926352,0.04160972,93061.0,93059.0,0.21491701]
[1765314926660,0.65906409,93061.0,93060.0,0.28476443]
[1765314926939,0.6332,93061.0,93060.0,0.28476443]
[1765314927178,0.6798,93062.0,93060.0,0.06984933]
[1765314927359,0.001,93061.0,93060.0,0.06984933]
[1765314927550,0.6828,93061.0,93060.0,0.06984933]
[1765314927790,0.6808,93061.0,93060.0,0.06984933]
[1765314927990,0.002,93061.0,93060.0,0.06984933]
[1765314928147,0.6946,93061.0,93060.0,0.06984933]
[1765314928318,0.6946,93061.0,93060.0,0.28476443]
[1765314929089,0.6946,93061.0,93060.0,0.06984933]
[1765314929394,0.6946,93061.0,93060.0,0.28476443]
[1765314929573,0.6946,93061.0,93060.0,0.2149151]
[1765314930330,0.6946,93061.0,93059.0,0.22566288]
[1765314930489,0.004,93061.0,93059.0,0.22566288]
[1765314931202,0.21491107,93062.0,93059.0,0.22566288]
[1765314931401,0.8075,93061.0,93060.0,0.06984936]
[1765314931723,0.791,93061.0,93060.0,0.28476446]
[1765314931874,0.789,93061.0,93060.0,0.28476446]
[1765314932532,0.789,93061.0,93060.0,0.32603733]
[1765314932533,0.002,93061.0,93060.0,0.32603733]
[1765314932709,0.017,93073.0,93072.0,0.21488739]
[1765314933108,0.017,93073.0,93072.0,0.26372739]
[1765314933681,0.017,93073.0,93072.0,0.24030739]
[1765314934102,0.001,93073.0,93072.0,0.26534026]
[1765314934300,0.002,93073.0,93072.0,0.26534026]
[1765314934502,0.002,93073.0,93072.0,0.35940911]
[1765314935124,0.001,93073.0,93072.0,0.35940911]
[1765314935735,0.0019624,93083.0,93082.0,0.21486431]
[1765314935914,0.0019624,93083.0,93080.0,0.01074344]
[1765314936534,0.0019624,93083.0,93082.0,0.21486431]
[1765314936735,0.0019624,93083.0,93082.0,0.26539463]
[1765314937315,0.0039624,93083.0,93082.0,0.26539463]
[1765314937562,0.0029624,93083.0,93082.0,0.26539463]
[1765314937775,0.0019624,93083.0,93082.0,0.26539463]
[1765314938130,0.0029624,93083.0,93082.0,0.05053032]
[1765314938782,0.2178244,93083.0,93082.0,0.05053032]
[1765314938943,0.2188244,93083.0,93080.0,0.22561059]
[1765314939284,0.2295675,93083.0,93080.0,0.22561059]
[1765314939481,0.22560809,93082.0,93079.0,0.01074356]
[1765314939643,0.02685832,93081.0,93078.0,0.01074367]
[1765314940032,0.01074379,93077.0,93072.0,0.00161287]
[1765314940234,0.2148785,93076.0,93073.0,0.21488509]
[1765314940434,0.21488047,93075.0,93074.0,0.0225678]
[1765314940859,0.21488047,93075.0,93071.0,0.22563398]
[1765314940860,0.01074425,93073.0,93070.0,0.22563653]
[1765314941066,0.23814278,93074.0,93070.0,0.0107446]
[1765314941269,0.24888691,93074.0,93071.0,0.21488964]
[1765314941469,0.21488565,93073.0,93070.0,0.22563653]
[1765314941667,0.01074517,93065.0,93062.0,0.01074552]
[1765314941853,0.01168,93066.0,93065.0,0.22564837]
[1765314942046,0.01168,93066.0,93065.0,0.2727712]
[1765314942363,0.04386005,93075.0,93065.0,0.2727712]
[1765314942364,0.01168,93073.0,93068.0,0.22564143]
[1765314942693,1.03854063,93073.0,93072.0,0.21488739]
[1765314942905,0.53988,93073.0,93072.0,0.21488739]
[1765314943070,0.55555,93073.0,93072.0,0.21488739]
[1765314943272,0.55555,93073.0,93072.0,0.07367697]
[1765314943273,0.5282,93073.0,93072.0,0.07367697]
[1765314943479,0.74308509,93073.0,93069.0,0.21489231]
[1765314943675,0.592,93074.0,93072.0,0.21488634]
[1765314943898,0.1713,93074.0,93072.0,0.2256307]
[1765314944104,0.1711,93073.0,93072.0,0.2256307]
[1765314944300,0.1721,93073.0,93072.0,0.30985442]
[1765314944501,0.1731,93073.0,93072.0,0.30985442]
[1765314944728,0.1731,93073.0,93072.0,0.21488739]
[1765314945090,0.6582,93073.0,93072.0,0.21488739]
[1765314945260,0.6582,93073.0,93070.0,0.0107446]
[1765314945261,1.01074436,93072.0,93070.0,0.21489192]
[1765314945420,1.0,93072.0,93070.0,0.22563652]
[1765314945630,0.6666,93072.0,93071.0,0.05198904]
[1765314945959,0.1434,93073.0,93072.0,0.21488739]
[1765314946183,0.1424,93073.0,93071.0,0.26687728]
[1765314946341,0.21489432,93069.0,93066.0,0.21490113]
[1765314946524,0.21489432,93069.0,93057.0,0.21492143]
[1765314946525,0.22563903,93069.0,93057.0,0.21492143]
[1765314946711,0.22563903,93069.0,93065.0,0.27277029]
[1765314946962,0.22563903,93069.0,93066.0,0.01074506]
[1765314947167,0.22562999,93073.0,93068.0,0.01074483]
[1765314947365,0.21488872,93072.0,93069.0,0.21489432]
[1765314947611,0.23814872,93072.0,93069.0,0.21489432]
[1765314948143,0.02326,93072.0,93071.0,0.2148897]
[1765314948344,1.0,93072.0,93069.0,0.22563903]
[1765314948544,0.22562945,93073.0,93066.0,0.001]
[1765314948545,0.23056432,93070.0,93066.0,0.001]
[1765314948771,0.21490158,93066.0,93064.0,0.01074529]
[1765314948946,0.22564029,93069.0,93066.0,0.001]
[1765314949154,0.2148988,93068.0,93066.0,0.21590106]
[1765314949367,0.01074471,93069.0,93067.0,0.21489856]
[1765314949568,0.01074436,93072.0,93070.0,0.21489201]
[1765314949769,1.22563266,93072.0,93071.0,0.0247127]
[1765314949992,0.01522,93070.0,93066.0,0.21490112]
[1765314950208,0.01074436,93072.0,93069.0,0.01074471]
[1765314950676,0.22563614,93072.0,93069.0,0.22563694]
[1765314950868,0.21489043,93071.0,93068.0,0.21489213]
[1765314951121,0.22563614,93072.0,93069.0,0.21489253]
[1765314951326,0.21488976,93071.0,93070.0,0.01608981]
[1765314952348,0.21488976,93071.0,93068.0,0.2256399]
[1765314952934,0.21488976,93071.0,93069.0,0.21489372]
[1765314952935,0.21588976,93071.0,93069.0,0.21489372]
[1765314953237,0.001,93071.0,93069.0,0.21489372]
[1765314953430,0.02786121,93071.0,93069.0,0.21489372]
[1765314953637,0.02686121,93071.0,93069.0,0.21489293]
[1765314953996,0.24275288,93071.0,93068.0,0.2256399]
[1765314954194,0.22663615,93071.0,93069.0,0.06387392]
[1765314954402,0.25349736,93071.0,93069.0,0.06387392]
[1765314955030,0.25249736,93071.0,93069.0,0.06387392]
[1765314955364,0.22663615,93071.0,93069.0,0.06387392]
[1765314956207,0.22663615,93071.0,93069.0,0.27876821]
[1765314956411,0.22663615,93071.0,93070.0,0.07515494]
[1765314957989,0.22763615,93071.0,93070.0,0.07515494]
[1765314958261,0.22663615,93071.0,93070.0,0.07515494]
[1765314958553,0.22763615,93071.0,93070.0,0.07515494]
[1765314958986,0.002,93071.0,93070.0,0.07515494]
[1765314959199,0.002,93071.0,93070.0,0.29004695]
[1765314959355,0.002,93071.0,93070.0,0.07515494]
[1765314960530,0.2168897,93071.0,93070.0,0.07515494]
[1765314960757,0.002,93071.0,93070.0,0.07515494]
[1765314960929,0.002,93071.0,93069.0,0.21489264]
[1765314961277,0.002,93071.0,93070.0,0.25588201]
[1765314961595,0.002,93071.0,93070.0,0.25749488]
[1765314961795,0.001,93071.0,93070.0,0.25749488]
[1765314962208,0.002,93071.0,93070.0,0.25749488]
[1765314962403,0.002,93071.0,93070.0,0.35292919]
[1765314962610,0.001,93071.0,93070.0,0.35292919]
[1765314962828,0.001,93071.0,93070.0,0.35392919]
[1765314964210,0.017,93077.0,93076.0,0.21487816]
[1765314964426,0.017,93077.0,93076.0,0.23093816]
[1765314964641,0.017,93077.0,93076.0,0.35948689]
[1765314965000,0.0019624,93083.0,93082.0,0.21486431]
[1765314965358,0.0019624,93083.0,93082.0,0.22404431]
[1765314965998,0.0019624,93083.0,93082.0,0.26664718]
[1765314967173,0.0039624,93083.0,93082.0,0.26664718]
[1765314967371,0.0049624,93083.0,93082.0,0.37182252]
[1765314967571,0.0019624,93083.0,93082.0,0.37182252]
[1765314967992,0.0019624,93083.0,93082.0,0.37382252]
[1765314968394,0.0019624,93083.0,93082.0,0.37282252]
[1765314968672,0.0029624,93083.0,93082.0,0.37482252]
[1765314969073,0.02773975,93112.0,93082.0,0.37482252]
[1765314969074,0.017,93112.0,93111.0,0.21479739]
[1765314969280,0.017,93112.0,93111.0,0.04223979]
[1765314969479,0.017,93112.0,93111.0,0.24097718]
[1765314969880,0.21479508,93112.0,93111.0,0.02617979]
[1765314970114,0.22553852,93111.0,93107.0,0.22554593]
[1765314970330,0.01073952,93114.0,93109.0,0.22554164]
[1765314970547,0.01273975,93112.0,93109.0,0.22554164]
[1765314970758,0.01373975,93112.0,93110.0,0.2147996]
[1765314970968,0.22753496,93112.0,93109.0,0.22554164]
[1765314971157,0.04535986,93111.0,93110.0,0.07072978]
[1765314971453,0.23692725,93111.0,93110.0,0.07072978]
[1765314971637,0.01139,93111.0,93110.0,0.28552947]
[1765314971954,0.01239,93111.0,93110.0,0.07072978]
[1765314972522,0.03923967,93111.0,93110.0,0.07072978]
[1765314972941,0.001,93111.0,93110.0,0.25386969]
[1765314973189,0.3523,93122.0,93121.0,0.21477432]
[1765314974333,0.01073767,93130.0,93126.0,0.01073813]
[1765314974547,1.0,93129.0,93127.0,0.02654575]
[1765314975019,1.21475818,93128.0,93127.0,0.02654575]
[1765314975379,1.21475818,93128.0,93124.0,0.01073837]
[1765314975380,0.01073825,93125.0,93122.0,0.0107386]
[1765314975614,1.01639,93123.0,93121.0,0.002]
[1765314975821,0.1708465,93122.0,93121.0,0.002]
[1765314976163,0.1708465,93122.0,93120.0,0.00918]
[1765314976278,1.0268465,93122.0,93121.0,0.24372625]
[1765314976482,1.0,93123.0,93121.0,0.24372625]
[1765314976704,1.0,93124.0,93122.0,0.22551061]
[1765314977138,0.21577201,93122.0,93121.0,0.02895193]
[1765314977370,0.9433,93122.0,93121.0,0.24153625]
[1765314977575,0.5892,93122.0,93121.0,0.24153625]
[1765314977742,0.5146,93125.0,93123.0,0.21476795]
[1765314977999,0.2116,93125.0,93124.0,0.26469361]
[1765314978213,0.01176,93126.0,93124.0,0.04992621]
[1765314978426,0.2032,93125.0,93124.0,0.26469321]
[1765314978637,0.21474309,93135.0,93128.0,0.0107379]
[1765314978782,0.01247472,93136.0,93133.0,0.22392665]
[1765314978998,0.2272147,93136.0,93133.0,0.25005186]
[1765314979370,0.21474309,93135.0,93133.0,0.03530521]
[1765314979770,0.23174434,93134.0,93133.0,0.03530521]
[1765314980021,0.017,93134.0,93133.0,0.25005186]
[1765314980234,0.017,93134.0,93133.0,0.03530521]
[1765314980400,0.23174434,93134.0,93133.0,0.03530521]
[1765314980584,0.23174434,93134.0,93133.0,0.01118]
[1765314980781,0.23174434,93134.0,93133.0,0.00918]
[1765314981226,0.23474434,93134.0,93133.0,0.00918]
[1765314982617,0.02,93134.0,93133.0,0.22392665]
[1765314983247,0.02,93134.0,93127.0,0.21475885]
[1765314983248,0.01073744,93132.0,93127.0,0.21475885]
[1765314983430,0.21475334,93131.0,93128.0,0.05284267]
[1765314983630,0.21475334,93131.0,93128.0,0.26759989]
[1765314983631,0.01073756,93131.0,93128.0,0.26759989]
[1765314984080,0.22548887,93131.0,93128.0,0.26759989]
[1765314984241,0.01073756,93131.0,93129.0,0.21475516]
[1765314984449,0.22548887,93131.0,93130.0,0.08239636]
[1765314984648,0.22748887,93131.0,93130.0,0.08239636]
[1765314985057,0.22548887,93131.0,93130.0,0.08239636]
[1765314985530,0.22748887,93131.0,93130.0,0.08239636]
[1765314985732,0.22748887,93131.0,93125.0,0.22550328]
[1765314985733,0.05261756,93131.0,93125.0,0.22550328]
[1765314985937,0.05261756,93131.0,93130.0,0.01585]
[1765314985938,0.002,93131.0,93130.0,0.01585]
[1765314986158,0.002,93131.0,93130.0,0.25538644]
[1765314986553,0.00173774,93136.0,93135.0,0.21474204]
[1765314986796,0.00173774,93136.0,93135.0,0.32547056]
[1765314987995,0.00473774,93136.0,93135.0,0.32547056]
[1765314988340,0.00573774,93136.0,93135.0,0.11072852]
[1765314988521,0.00573774,93136.0,93135.0,0.25376204]
[1765314988867,0.00573774,93136.0,93135.0,0.25537491]
[1765314989571,0.00473774,93136.0,93135.0,0.25537491]
[1765314989775,0.00173774,93136.0,93135.0,0.25537491]
[1765314990137,0.00473774,93136.0,93135.0,0.25537491]
[1765314990326,0.00473774,93136.0,93135.0,0.34947643]
[1765314990549,0.00173774,93136.0,93135.0,0.34947643]
[1765314990704,0.00173774,93136.0,93135.0,0.35047643]
[1765314993315,0.02380603,93136.0,93135.0,0.35047643]
[1765314994117,0.00173774,93136.0,93135.0,0.35047643]
[1765314997467,0.21647747,93136.0,93135.0,0.11095152]
[1765314997628,0.21647747,93136.0,93135.0,0.001]
[1765314997629,0.28845414,93136.0,93135.0,0.001]
[1765314997829,1.28845414,93136.0,93135.0,0.001]
[1765314998454,1.31156357,93136.0,93135.0,0.001]
[1765314998637,0.23684261,93121.0,93120.0,0.39629904]
[1765314998839,0.24687099,93121.0,93120.0,0.0652481]
[1765314999066,0.21478254,93118.0,93116.0,0.00918]
[1765314999398,0.01073894,93119.0,93116.0,0.00918]
[1765314999979,0.01073894,93119.0,93117.0,0.2147824]
[1765315000190,0.01003411,93120.0,93118.0,0.21477927]
[1765315000338,0.01003411,93120.0,93116.0,0.01991929]
[1765315000339,0.23554957,93120.0,93119.0,0.02868363]
[1765315000575,0.23554957,93120.0,93106.0,0.00918]
[1765315000576,0.01073975,93112.0,93106.0,0.00918]
[1765315000762,0.21480433,93108.0,93106.0,0.00918]
[1765315000966,0.22554473,93109.0,93106.0,0.00918]
[1765315001172,0.22554473,93109.0,93098.0,0.39629904]
[1765315001173,0.22556781,93099.0,93097.0,0.00918]
[1765315001420,0.22556664,93099.0,93097.0,0.00918]
[1765315001623,0.22556539,93100.0,93098.0,0.02671123]
[1765315002925,0.22656539,93100.0,93098.0,0.02671123]
[1765315003157,0.22656539,93100.0,93094.0,0.01074183]
[1765315003158,0.01074194,93093.0,93085.0,0.01074286]
[1765315003341,0.01074194,93093.0,93082.0,0.03416489]
[1765315003342,0.01074148,93097.0,93088.0,0.02317]
[1765315003343,0.02206829,93092.0,93088.0,0.02317]
[1765315003516,0.02206829,93092.0,93089.0,0.22559055]
[1765315003735,0.01074194,93093.0,93090.0,0.31265741]
[1765315004112,0.01074148,93097.0,93090.0,0.31265741]
[1765315004113,0.01074148,93097.0,93093.0,0.21483751]
[1765315004332,0.03281,93095.0,93091.0,0.01074217]
[1765315004534,0.24764443,93095.0,93091.0,0.01074217]
[1765315004940,0.21484377,93091.0,93087.0,0.23638792]
[1765315005265,0.01074217,93091.0,93088.0,0.04854083]
[1765315005560,0.21484708,93090.0,93088.0,0.04854083]
[1765315005703,0.214862,93083.0,93078.0,0.00918]
[1765315005898,0.214862,93083.0,93078.0,0.01992367]
[1765315006301,0.03281115,93085.0,93081.0,0.01074333]
[1765315006466,0.02206829,93085.0,93084.0,0.21485969]
[1765315006661,0.02206829,93085.0,93084.0,0.24158619]
[1765315007512,0.22559302,93088.0,93085.0,0.21485663]
[1765315007693,0.02206829,93087.0,93085.0,0.21485663]
[1765315007890,0.23692124,93087.0,93084.0,0.25232917]
[1765315008384,0.02206829,93087.0,93084.0,0.25232917]
[1765315008585,0.02206829,93087.0,93085.0,0.29062058]
[1765315009221,0.02406829,93087.0,93085.0,0.07576323]
[1765315009582,0.21485508,93086.0,93084.0,0.0267265]
[1765315009959,0.21485738,93085.0,93084.0,0.0267265]
[1765315010273,0.03481092,93087.0,93084.0,0.0267265]
[1765315010460,0.22560254,93085.0,93082.0,0.01099489]
[1765315010638,0.22560254,93085.0,93082.0,0.22585832]
[1765315010823,0.21485995,93084.0,93082.0,0.22585832]
[1765315011364,0.22560107,93085.0,93082.0,0.22585832]
[1765315011864,0.21485993,93084.0,93082.0,0.22585832]